fUST/lending_fUST_20250208
["ID","MTS","AMOUNT","RATE_DAILY","PERIOD"]
[352220775,1739005842824,-500.0,0.00011095,2]
[352220776,1739005842834,-909.84,0.00011095,2]
[352220777,1739005842844,-500.0,0.00011095,2]
[352220778,1739005842857,-500.0,0.00011095,2]
[352220779,1739005842867,-500.0,0.00011095,2]
[352220780,1739005842877,-500.0,0.00011095,2]
[352220781,1739005842886,-500.0,0.00011095,2]
[352220782,1739005842895,-500.0,0.00011095,2]
[352220783,1739005842907,-500.0,0.00011095,2]
[352220784,1739005842916,-2647.31,0.00011095,2]
[352220785,1739005842925,-1905.23,0.00011095,2]
[352220786,1739005842937,-500.0,0.00011095,2]
[352220787,1739005842947,-500.0,0.00011095,2]
[352220788,1739005842957,-500.0,0.00011095,2]
[352220789,1739005842966,-500.0,0.00011095,2]
[352220790,1739005842976,-500.0,0.00011095,2]
[352220791,1739005842985,-525.10126798,0.00011095,2]
[352220792,1739005842994,-3845.07,0.00011095,2]
[352220793,1739005843003,-500.0,0.00011095,2]
[352220794,1739005843013,-227.75687959,0.00011095,2]
[352220795,1739005843023,-500.0,0.00011095,2]
[352220796,1739005843032,-500.0,0.00011095,2]
[352220797,1739005843042,-500.0,0.00011095,2]
[352220798,1739005843051,-500.0,0.00011095,2]
[352220799,1739005843061,-612.45,0.00011095,2]
[352220800,1739005843070,-500.0,0.00011095,2]
[352220801,1739005843079,-500.0,0.00011095,2]
[352220802,1739005843088,-500.0,0.00011095,2]
[352220803,1739005843098,-500.0,0.00011095,2]
[352220804,1739005843107,-3395.29,0.00011095,2]
[352220805,1739005843116,-500.0,0.00011095,2]
[352220806,1739005843126,-8470.74,0.00011095,2]
[352220807,1739005843135,-621.13187448,0.00011095,2]
[352220808,1739005843144,-4026.4,0.00011095,2]
[352220809,1739005843154,-1560.09,0.00011095,2]
[352220810,1739005843163,-500.0,0.00011095,2]
[352220811,1739005843172,-810.15,0.00011095,2]
[352220812,1739005843181,-1702.16,0.00011095,2]
[352220813,1739005843191,-1259.85,0.00011095,2]
[352220814,1739005843199,-500.0,0.00011095,2]
[352220815,1739005843209,-915.96,0.00011095,2]
[352220816,1739005843228,-500.0,0.00011095,2]
[352220817,1739005843238,-163.46763951,0.00011095,2]
[352220818,1739005843248,-572.14,0.00011095,2]
[352220819,1739005843258,-1588.49,0.00011095,2]
[352220820,1739005843267,-500.0,0.00011095,2]
[352220821,1739005843277,-1299.2,0.00011095,2]
[352220822,1739005843286,-500.0,0.00011095,2]
[352220823,1739005843296,-4673.49,0.00011095,2]
[352220825,1739005843305,-500.0,0.00011095,2]
[352220827,1739005843315,-434.76973342,0.00011095,2]
[352220828,1739005843324,-500.0,0.00011095,2]
[352220830,1739005843333,-500.0,0.00011095,2]
[352220832,1739005843343,-500.0,0.00011095,2]
[352220834,1739005843352,-641.0,0.00011095,2]
[352220836,1739005843363,-624.92,0.00011095,2]
[352220838,1739005843373,-500.0,0.00011095,2]
[352220840,1739005843383,-500.0,0.00011095,2]
[352220842,1739005843392,-500.0,0.00011095,2]
[352220844,1739005843401,-543.02,0.00011095,2]
[352220845,1739005843410,-500.0,0.00011095,2]
[352220846,1739005843420,-500.0,0.00011095,2]
[352220847,1739005843429,-1215.37,0.00011095,2]
[352220848,1739005843438,-736.19,0.00011095,2]
[352220849,1739005843447,-500.0,0.00011095,2]
[352220850,1739005843457,-1598.99,0.00011095,2]
[352220851,1739005843466,-500.0,0.00011095,2]
[352220852,1739005843476,-500.0,0.00011095,2]
[352220853,1739005843485,-165.68827188,0.00011096,5]
[352220854,1739005843495,-151.0,0.000111,2]
[352220855,1739005843504,-151.0,0.000111,2]
[352220856,1739005843514,-151.0,0.000111,2]
[352220857,1739005843525,-151.0,0.000111,2]
[352220858,1739005843536,-151.0,0.000111,2]
[352220859,1739005843546,-151.0,0.000112,2]
[352220860,1739005843556,-151.0,0.000112,2]
[352220861,1739005843566,-151.0,0.000112,2]
[352220862,1739005843576,-151.0,0.000112,2]
[352220863,1739005843586,-171.04240597,0.00011232,2]
[352220864,1739005843595,-500.0,0.00011232,2]
[352220865,1739005843605,-500.0,0.00011232,2]
[352220866,1739005843615,-500.0,0.00011232,2]
[352220867,1739005843624,-500.0,0.00011232,2]
[352220868,1739005843633,-500.0,0.00011232,2]
[352220869,1739005843643,-500.0,0.00011232,2]
[352220870,1739005843654,-500.0,0.00011232,2]
[352220871,1739005843663,-589.26,0.00011232,2]
[352220872,1739005843673,-500.0,0.00011232,2]
[352220873,1739005843683,-500.0,0.00011232,2]
[352220874,1739005843693,-500.0,0.00011232,2]
[352220875,1739005843702,-500.0,0.00011232,2]
[352220876,1739005843712,-500.0,0.00011232,2]
[352220877,1739005843721,-500.0,0.00011232,2]
[352220878,1739005843732,-500.0,0.00011232,2]
[352220879,1739005843742,-500.0,0.00011232,2]
[352220880,1739005843752,-500.0,0.00011232,2]
[352220881,1739005843761,-500.0,0.00011232,2]
[352220882,1739005843771,-500.0,0.00011232,2]
[352220883,1739005843780,-500.0,0.00011232,2]
[352220884,1739005843790,-500.0,0.00011232,2]
[352220885,1739005843800,-776.15,0.00011232,2]
[352220886,1739005843809,-500.0,0.00011232,2]
[352220887,1739005843819,-500.0,0.00011232,2]
[352220888,1739005843828,-366.21379889,0.00011232,2]
[352220889,1739005843838,-500.0,0.00011232,2]
[352220890,1739005843847,-500.0,0.00011232,2]
[352220891,1739005843857,-500.0,0.00011232,2]
[352220892,1739005843869,-500.0,0.00011232,2]
[352220893,1739005843878,-578.18,0.00011232,2]
[352220894,1739005843888,-500.0,0.00011232,2]
[352220895,1739005843897,-500.0,0.00011232,2]
[352220896,1739005843909,-500.0,0.00011232,2]
[352220897,1739005843919,-500.0,0.00011232,2]
[352220898,1739005843930,-500.0,0.00011232,2]
[352220899,1739005843940,-836.57,0.00011232,2]
[352220900,1739005843950,-584.95,0.00011232,2]
[352220901,1739005843959,-298.36,0.00011232,2]
[352220902,1739005843969,-500.0,0.00011232,2]
[352220903,1739005843979,-680.23,0.00011232,2]
[352220904,1739005843988,-500.0,0.00011232,2]
[352220905,1739005843997,-500.0,0.00011232,2]
[352220906,1739005844008,-500.0,0.00011232,2]
[352220907,1739005844017,-500.0,0.00011232,2]
[352220908,1739005844027,-500.0,0.00011232,2]
[352220909,1739005844038,-500.0,0.00011232,2]
[352220910,1739005844047,-500.0,0.00011232,2]
[352220911,1739005844057,-500.0,0.00011232,2]
[352220912,1739005844069,-500.0,0.00011232,2]
[352220913,1739005844078,-500.0,0.00011232,2]
[352220914,1739005844088,-500.0,0.00011232,2]
[352220915,1739005844098,-500.0,0.00011232,2]
[352220916,1739005844107,-500.0,0.00011232,2]
[352220917,1739005844117,-500.0,0.00011232,2]
[352220918,1739005844127,-500.0,0.00011232,2]
[352220919,1739005844137,-500.0,0.00011232,2]
[352220920,1739005844321,-1078.74,0.00011232,2]
[352220921,1739005844331,-500.0,0.00011232,2]
[352220922,1739005844340,-500.0,0.00011232,2]
[352220923,1739005844350,-500.0,0.00011232,2]
[352220924,1739005844361,-500.0,0.00011232,2]
[352220925,1739005844370,-500.0,0.00011232,2]
[352220926,1739005844380,-214.49,0.00011232,2]
[352220927,1739005844389,-1413.08,0.00011232,2]
[352220928,1739005844401,-500.0,0.00011232,2]
[352220929,1739005844411,-500.0,0.00011232,2]
[352220930,1739005844421,-642.11100735,0.00011232,2]
[352220931,1739005844431,-500.0,0.00011232,2]
[352220932,1739005844440,-1460.34,0.00011232,2]
[352220933,1739005844450,-500.0,0.00011232,2]
[352220934,1739005844460,-500.0,0.00011232,2]
[352220935,1739005844469,-500.0,0.00011232,2]
[352220936,1739005844479,-651.69,0.00011232,2]
[352220937,1739005844488,-726.43,0.00011232,2]
[352220938,1739005844498,-500.0,0.00011232,2]
[352220939,1739005844508,-500.0,0.00011232,2]
[352220940,1739005844518,-500.0,0.00011232,2]
[352220941,1739005844534,-500.0,0.00011232,2]
[352220942,1739005844554,-500.0,0.00011232,2]
[352220943,1739005844569,-500.0,0.00011232,2]
[352220944,1739005844579,-500.0,0.00011232,2]
[352220945,1739005844588,-500.0,0.00011232,2]
[352220946,1739005844597,-500.0,0.00011232,2]
[352220947,1739005844606,-500.0,0.00011232,2]
[352220948,1739005844616,-500.0,0.00011232,2]
[352220949,1739005844625,-500.0,0.00011232,2]
[352220950,1739005844634,-500.0,0.00011232,2]
[352220951,1739005844643,-500.0,0.00011232,2]
[352220952,1739005844652,-500.0,0.00011232,2]
[352220953,1739005844662,-1154.32,0.00011232,2]
[352220954,1739005844671,-1741.3,0.00011232,2]
[352220955,1739005844680,-500.0,0.00011232,2]
[352220956,1739005844689,-500.0,0.00011232,2]
[352220957,1739005844698,-500.0,0.00011232,2]
[352220958,1739005844707,-500.0,0.00011232,2]
[352220959,1739005844716,-500.0,0.00011232,2]
[352220960,1739005844726,-500.0,0.00011232,2]
[352220961,1739005844735,-3224.88,0.00011232,2]
[352220962,1739005844744,-500.0,0.00011232,2]
[352220963,1739005844754,-500.0,0.00011232,2]
[352220964,1739005844763,-500.0,0.00011232,2]
[352220965,1739005844772,-852.8,0.00011232,2]
[352220966,1739005844781,-1282.27,0.00011232,2]
[352220967,1739005844790,-500.0,0.00011232,2]
[352220968,1739005844799,-699.92,0.00011232,2]
[352220969,1739005844808,-500.0,0.00011232,2]
[352220970,1739005844817,-17929.08,0.00011232,2]
[352220971,1739005844827,-782.47,0.00011232,2]
[352220972,1739005844836,-500.0,0.00011232,2]
[352220973,1739005844847,-3389.24,0.00011232,2]
[352220974,1739005844857,-650.58,0.00011232,2]
[352220975,1739005844869,-500.0,0.00011232,2]
[352220976,1739005844879,-500.0,0.00011232,2]
[352220977,1739005844887,-1066.11,0.00011232,2]
[352220978,1739005844897,-764.5,0.00011232,2]
[352220979,1739005844909,-500.0,0.00011232,2]
[352220980,1739005844918,-1336.44,0.00011232,2]
[352220981,1739005844928,-1334.47,0.00011232,2]
[352220982,1739005844938,-500.0,0.00011232,2]
[352220983,1739005844948,-471.21177192,0.00011232,2]
[352220984,1739005844957,-500.0,0.00011232,2]
[352220985,1739005844967,-3193.59,0.00011232,2]
[352220986,1739005844976,-500.0,0.00011232,2]
[352220987,1739005844986,-500.0,0.00011232,2]
[352220988,1739005844995,-500.0,0.00011232,2]
[352220989,1739005845004,-500.0,0.00011232,2]
[352220990,1739005845013,-500.0,0.00011232,2]
[352220991,1739005845022,-500.0,0.00011232,2]
[352220992,1739005845032,-500.0,0.00011232,2]
[352220993,1739005845042,-705.51,0.00011232,2]
[352220994,1739005845052,-500.0,0.00011232,2]
[352220995,1739005845061,-500.0,0.00011232,2]
[352220996,1739005845071,-500.0,0.00011232,2]
[352220997,1739005845080,-500.0,0.00011232,2]
[352220998,1739005845089,-1949.71,0.00011232,2]
[352220999,1739005845097,-5239.35,0.00011232,2]
[352221000,1739005845107,-500.0,0.00011232,2]
[352221001,1739005845117,-1018.8,0.00011232,2]
[352221002,1739005845126,-500.0,0.00011232,2]
[352221003,1739005845136,-1342.47,0.00011232,2]
[352221004,1739005845145,-500.0,0.00011232,2]
[352221005,1739005845155,-500.0,0.00011232,2]
[352221006,1739005845163,-500.0,0.00011232,2]
[352221007,1739005845173,-657.33,0.00011232,2]
[352221008,1739005845182,-500.0,0.00011232,2]
[352221009,1739005845192,-500.0,0.00011232,2]
[352221010,1739005845201,-500.0,0.00011232,2]
[352221011,1739005845211,-500.0,0.00011232,2]
[352221012,1739005845221,-500.0,0.00011232,2]
[352221013,1739005845230,-500.0,0.00011232,2]
[352221014,1739005845239,-625.78,0.00011232,2]
[352221015,1739005845249,-1542.14,0.00011232,2]
[352221016,1739005845258,-500.0,0.00011232,2]
[352221017,1739005845269,-500.0,0.00011232,2]
[352221018,1739005845278,-500.0,0.00011232,2]
[352221019,1739005845287,-44734.99,0.00011232,2]
[352221020,1739005845297,-500.0,0.00011232,2]
[352221021,1739005845306,-500.0,0.00011232,2]
[352221022,1739005845315,-500.0,0.00011232,2]
[352221023,1739005845325,-1289.54,0.00011232,2]
[352221024,1739005845335,-2034.31,0.00011232,2]
[352221025,1739005845344,-500.0,0.00011232,2]
[352221026,1739005845354,-500.0,0.00011232,2]
[352221027,1739005845363,-500.0,0.00011232,2]
[352221028,1739005845372,-1712.41,0.00011232,2]
[352221029,1739005845381,-500.0,0.00011232,2]
[352221030,1739005845391,-15471.22,0.00011232,2]
[352221031,1739005845400,-500.0,0.00011232,2]
[352221032,1739005845412,-1177.1,0.00011232,2]
[352221033,1739005845422,-500.0,0.00011232,2]
[352221034,1739005845431,-500.0,0.00011232,2]
[352221035,1739005845440,-909.84,0.00011232,2]
[352221036,1739005845450,-500.0,0.00011232,2]
[352221037,1739005845459,-500.0,0.00011232,2]
[352221038,1739005845469,-500.0,0.00011232,2]
[352221039,1739005845478,-500.0,0.00011232,2]
[352221040,1739005845487,-500.0,0.00011232,2]
[352221041,1739005845497,-2647.31,0.00011232,2]
[352221042,1739005845506,-1905.23,0.00011232,2]
[352221043,1739005845515,-500.0,0.00011232,2]
[352221044,1739005845525,-500.0,0.00011232,2]
[352221045,1739005845535,-500.0,0.00011232,2]
[352221046,1739005845544,-500.0,0.00011232,2]
[352221047,1739005845554,-3845.07,0.00011232,2]
[352221048,1739005845563,-500.0,0.00011232,2]
[352221049,1739005845572,-500.0,0.00011232,2]
[352221051,1739005845581,-500.0,0.00011232,2]
[352221053,1739005845590,-500.0,0.00011232,2]
[352221054,1739005845600,-500.0,0.00011232,2]
[352221056,1739005845609,-612.45,0.00011232,2]
[352221058,1739005845618,-500.0,0.00011232,2]
[352221059,1739005845628,-500.0,0.00011232,2]
[352221060,1739005845637,-3395.29,0.00011232,2]
[352221061,1739005845647,-500.0,0.00011232,2]
[352221062,1739005845657,-8470.74,0.00011232,2]
[352221063,1739005845666,-4026.4,0.00011232,2]
[352221064,1739005845675,-1560.09,0.00011232,2]
[352221065,1739005845684,-500.0,0.00011232,2]
[352221066,1739005845694,-810.15,0.00011232,2]
[352221067,1739005845703,-1702.16,0.00011232,2]
[352221068,1739005845713,-1259.85,0.00011232,2]
[352221069,1739005845723,-500.0,0.00011232,2]
[352221070,1739005845732,-915.96,0.00011232,2]
[352221071,1739005845741,-572.14,0.00011232,2]
[352221072,1739005845751,-1588.49,0.00011232,2]
[352221073,1739005845760,-500.0,0.00011232,2]
[352221074,1739005845769,-1299.2,0.00011232,2]
[352221075,1739005845779,-500.0,0.00011232,2]
[352221076,1739005845788,-500.0,0.00011232,2]
[352221077,1739005845798,-4673.49,0.00011232,2]
[352221078,1739005845807,-500.0,0.00011232,2]
[352221079,1739005845816,-500.0,0.00011232,2]
[352221080,1739005845825,-500.0,0.00011232,2]
[352221081,1739005845834,-641.0,0.00011232,2]
[352221082,1739005845845,-624.92,0.00011232,2]
[352221083,1739005845853,-500.0,0.00011232,2]
[352221084,1739005845864,-500.0,0.00011232,2]
[352221085,1739005845873,-500.0,0.00011232,2]
[352221086,1739005845882,-543.02,0.00011232,2]
[352221087,1739005845891,-500.0,0.00011232,2]
[352221088,1739005845900,-500.0,0.00011232,2]
[352221089,1739005845912,-1215.37,0.00011232,2]
[352221090,1739005845922,-736.19,0.00011232,2]
[352221091,1739005845932,-500.0,0.00011232,2]
[352221092,1739005845943,-1598.99,0.00011232,2]
[352221093,1739005845953,-500.0,0.00011232,2]
[352221094,1739005845962,-170.99774382,0.00011269,2]
[352221095,1739005845972,-151.0,0.000113,2]
[352221096,1739005845982,-151.0,0.000113,2]
[352221097,1739005845992,-151.0,0.000113,2]
[352221098,1739005846003,-151.0,0.000113,2]
[352221099,1739005846013,-151.0,0.000113,2]
[352221100,1739005846023,-500.0,0.00011331,2]
[352221101,1739005846034,-500.0,0.00011338,2]
[352221102,1739005846046,-500.0,0.00011348,2]
[352221103,1739005846055,-502.63900238,0.00011352,2]
[352221104,1739005846065,-193.717122,0.00011369,2]
[352221105,1739005846074,-151.0,0.00011369,2]
[352221106,1739005846083,-152.525797,0.00011369,2]
[352221107,1739005846092,-151.0,0.00011369,2]
[352221108,1739005846102,-151.0,0.00011369,2]
[352221109,1739005846111,-151.0,0.00011369,2]
[352221110,1739005846120,-151.0,0.00011369,2]
[352221111,1739005846129,-500.0,0.00011369,2]
[352221112,1739005846138,-500.0,0.00011369,2]
[352221113,1739005846148,-500.0,0.00011369,2]
[352221114,1739005846158,-500.0,0.00011369,2]
[352221115,1739005846167,-500.0,0.00011369,2]
[352221116,1739005846176,-500.0,0.00011369,2]
[352221117,1739005846185,-589.26,0.00011369,2]
[352221118,1739005846194,-500.0,0.00011369,2]
[352221119,1739005846203,-500.0,0.00011369,2]
[352221120,1739005846213,-500.0,0.00011369,2]
[352221121,1739005846222,-500.0,0.00011369,2]
[352221122,1739005846232,-500.0,0.00011369,2]
[352221123,1739005846241,-500.0,0.00011369,2]
[352221124,1739005846250,-500.0,0.00011369,2]
[352221125,1739005846260,-500.0,0.00011369,2]
[352221126,1739005846269,-500.0,0.00011369,2]
[352221127,1739005846278,-500.0,0.00011369,2]
[352221128,1739005846288,-500.0,0.00011369,2]
[352221129,1739005846299,-776.15,0.00011369,2]
[352221130,1739005846309,-545.76094174,0.00011369,2]
[352221131,1739005846320,-232.57135564,0.00011369,2]
[352221132,1739005846331,-500.0,0.00011369,2]
[352221133,1739005846340,-500.0,0.00011369,2]
[352221134,1739005846350,-500.0,0.00011369,2]
[352221135,1739005846359,-578.18,0.00011369,2]
[352221136,1739005846369,-500.0,0.00011369,2]
[352221137,1739005846378,-500.0,0.00011369,2]
[352221138,1739005846387,-500.0,0.00011369,2]
[352221139,1739005846397,-500.0,0.00011369,2]
[352221140,1739005846407,-836.57,0.00011369,2]
[352221141,1739005846417,-584.95,0.00011369,2]
[352221142,1739005846426,-514.16,0.00011369,2]
[352221143,1739005846436,-680.23,0.00011369,2]
[352221144,1739005846446,-500.0,0.00011369,2]
[352221145,1739005846455,-500.0,0.00011369,2]
[352221146,1739005846465,-500.0,0.00011369,2]
[352221147,1739005846474,-500.0,0.00011369,2]
[352221148,1739005846483,-500.0,0.00011369,2]
[352221149,1739005846493,-472.88083876,0.00011369,2]
[352221150,1739005846503,-500.0,0.00011369,2]
[352221151,1739005846513,-500.0,0.00011369,2]
[352221152,1739005846522,-500.0,0.00011369,2]
[352221153,1739005846532,-500.0,0.00011369,2]
[352221154,1739005846541,-500.0,0.00011369,2]
[352221155,1739005846550,-500.0,0.00011369,2]
[352221156,1739005846560,-500.0,0.00011369,2]
[352221157,1739005846569,-500.0,0.00011369,2]
[352221158,1739005846578,-500.0,0.00011369,2]
[352221159,1739005846587,-1078.74,0.00011369,2]
[352221160,1739005846597,-500.0,0.00011369,2]
[352221161,1739005846606,-201.77620619,0.00011369,2]
[352221162,1739005846615,-500.0,0.00011369,2]
[352221163,1739005846625,-500.0,0.00011369,2]
[352221164,1739005846634,-500.0,0.00011369,2]
[352221165,1739005846643,-1413.08,0.00011369,2]
[352221166,1739005846652,-500.0,0.00011369,2]
[352221167,1739005846663,-500.0,0.00011369,2]
[352221168,1739005846672,-500.0,0.00011369,2]
[352221169,1739005846682,-1460.34,0.00011369,2]
[352221170,1739005846691,-500.0,0.00011369,2]
[352221171,1739005846701,-500.0,0.00011369,2]
[352221172,1739005846711,-515.34,0.00011369,2]
[352221173,1739005846721,-651.69,0.00011369,2]
[352221174,1739005846730,-726.43,0.00011369,2]
[352221175,1739005846740,-500.0,0.00011369,2]
[352221176,1739005846749,-500.0,0.00011369,2]
[352221177,1739005846759,-500.0,0.00011369,2]
[352221178,1739005846768,-500.0,0.00011369,2]
[352221179,1739005846778,-500.0,0.00011369,2]
[352221180,1739005846787,-500.0,0.00011369,2]
[352221181,1739005846798,-500.0,0.00011369,2]
[352221182,1739005846807,-500.0,0.00011369,2]
[352221183,1739005846816,-500.0,0.00011369,2]
[352221184,1739005846826,-500.0,0.00011369,2]
[352221185,1739005846836,-500.0,0.00011369,2]
[352221186,1739005846846,-500.0,0.00011369,2]
[352221187,1739005846856,-500.0,0.00011369,2]
[352221188,1739005846868,-500.0,0.00011369,2]
[352221189,1739005846878,-1154.32,0.00011369,2]
[352221190,1739005846887,-1741.3,0.00011369,2]
[352221191,1739005846897,-500.0,0.00011369,2]
[352221192,1739005846907,-500.0,0.00011369,2]
[352221193,1739005846918,-500.0,0.00011369,2]
[352221194,1739005846929,-500.0,0.00011369,2]
[352221195,1739005846940,-500.0,0.00011369,2]
[352221196,1739005846951,-3224.88,0.00011369,2]
[352221197,1739005846962,-500.0,0.00011369,2]
[352221198,1739005846972,-500.0,0.00011369,2]
[352221199,1739005846982,-500.0,0.00011369,2]
[352221200,1739005846992,-852.8,0.00011369,2]
[352221201,1739005847002,-1282.27,0.00011369,2]
[352221202,1739005847012,-500.0,0.00011369,2]
[352221203,1739005847022,-699.92,0.00011369,2]
[352221204,1739005847031,-500.0,0.00011369,2]
[352221205,1739005847041,-17929.08,0.00011369,2]
[352221206,1739005847050,-782.47,0.00011369,2]
[352221207,1739005847060,-500.0,0.00011369,2]
[352221208,1739005847070,-3389.24,0.00011369,2]
[352221209,1739005847079,-650.58,0.00011369,2]
[352221210,1739005847088,-500.0,0.00011369,2]
[352221211,1739005847097,-500.0,0.00011369,2]
[352221212,1739005847107,-1066.11,0.00011369,2]
[352221213,1739005847116,-764.5,0.00011369,2]
[352221214,1739005847125,-500.0,0.00011369,2]
[352221215,1739005847136,-1336.44,0.00011369,2]
[352221216,1739005847146,-1334.47,0.00011369,2]
[352221217,1739005847155,-500.0,0.00011369,2]
[352221218,1739005847165,-500.0,0.00011369,2]
[352221219,1739005847175,-3193.59,0.00011369,2]
[352221220,1739005847184,-500.0,0.00011369,2]
[352221221,1739005847194,-500.0,0.00011369,2]
[352221222,1739005847203,-500.0,0.00011369,2]
[352221223,1739005847212,-500.0,0.00011369,2]
[352221224,1739005847221,-519.86851617,0.00011369,2]
[352221225,1739005847231,-500.0,0.00011369,2]
[352221226,1739005847239,-705.51,0.00011369,2]
[352221227,1739005847250,-500.0,0.00011369,2]
[352221228,1739005847259,-500.0,0.00011369,2]
[352221229,1739005847268,-500.0,0.00011369,2]
[352221230,1739005847277,-1949.71,0.00011369,2]
[352221231,1739005847286,-5239.35,0.00011369,2]
[352221232,1739005847296,-500.0,0.00011369,2]
[352221233,1739005847305,-1018.8,0.00011369,2]
[352221234,1739005847315,-500.0,0.00011369,2]
[352221235,1739005847324,-1342.47,0.00011369,2]
[352221236,1739005847334,-500.0,0.00011369,2]
[352221237,1739005847344,-500.0,0.00011369,2]
[352221238,1739005847353,-657.33,0.00011369,2]
[352221239,1739005847363,-500.0,0.00011369,2]
[352221240,1739005847374,-500.0,0.00011369,2]
[352221241,1739005847384,-402.32676961,0.00011369,2]
[352221242,1739005847394,-500.0,0.00011369,2]
[352221243,1739005847405,-500.0,0.00011369,2]
[352221244,1739005847416,-500.0,0.00011369,2]
[352221245,1739005847426,-1542.14,0.00011369,2]
[352221246,1739005847437,-500.0,0.00011369,2]
[352221247,1739005847446,-500.0,0.00011369,2]
[352221248,1739005847456,-44734.99,0.00011369,2]
[352221249,1739005847465,-500.0,0.00011369,2]
[352221250,1739005847475,-500.0,0.00011369,2]
[352221251,1739005847483,-500.0,0.00011369,2]
[352221252,1739005847493,-1289.54,0.00011369,2]
[352221253,1739005847502,-2034.31,0.00011369,2]
[352221254,1739005847512,-500.0,0.00011369,2]
[352221255,1739005847521,-500.0,0.00011369,2]
[352221256,1739005847647,-500.0,0.00011369,2]
[352221257,1739005847674,-1712.41,0.00011369,2]
[352221258,1739005847684,-500.0,0.00011369,2]
[352221259,1739005847694,-15471.22,0.00011369,2]
[352221260,1739005847703,-500.0,0.00011369,2]
[352221261,1739005847713,-1177.1,0.00011369,2]
[352221262,1739005847722,-500.0,0.00011369,2]
[352221263,1739005847732,-500.0,0.00011369,2]
[352221264,1739005847742,-909.84,0.00011369,2]
[352221265,1739005847752,-500.0,0.00011369,2]
[352221266,1739005847761,-500.0,0.00011369,2]
[352221267,1739005847770,-500.0,0.00011369,2]
[352221268,1739005847779,-500.0,0.00011369,2]
[352221269,1739005847789,-500.0,0.00011369,2]
[352221270,1739005847798,-2647.31,0.00011369,2]
[352221271,1739005847808,-1905.23,0.00011369,2]
[352221272,1739005847817,-500.0,0.00011369,2]
[352221273,1739005847827,-500.0,0.00011369,2]
[352221274,1739005847837,-500.0,0.00011369,2]
[352221275,1739005847846,-500.0,0.00011369,2]
[352221276,1739005847856,-3845.07,0.00011369,2]
[352221277,1739005847869,-500.0,0.00011369,2]
[352221278,1739005847879,-500.0,0.00011369,2]
[352221279,1739005847888,-500.0,0.00011369,2]
[352221280,1739005847898,-612.45,0.00011369,2]
[352221281,1739005847910,-500.0,0.00011369,2]
[352221282,1739005847919,-500.0,0.00011369,2]
[352221283,1739005847928,-3395.29,0.00011369,2]
[352221284,1739005847938,-500.0,0.00011369,2]
[352221285,1739005847948,-8470.74,0.00011369,2]
[352221286,1739005847959,-4026.4,0.00011369,2]
[352221287,1739005847968,-1560.09,0.00011369,2]
[352221288,1739005847978,-500.0,0.00011369,2]